fUST/lending_fUST_20250519
["ID","MTS","AMOUNT","RATE_DAILY","PERIOD"]
[361606892,1747635050770,-500.0,0.00024657,4]
[361606894,1747635050780,-430.0,0.00024657,4]
[361606896,1747635050790,-430.0,0.00024657,4]
[361606898,1747635050800,-500.0,0.00024657,4]
[361606900,1747635050810,-573.11544977,0.00024657,4]
[361606902,1747635050820,-430.0,0.00024657,4]
[361606904,1747635050830,-500.0,0.00024657,4]
[361606906,1747635050839,-350.99742839,0.00024657,4]
[361606908,1747635050848,-430.0,0.00024657,4]
[361606910,1747635050858,-192.3827962,0.00024657,4]
[361606912,1747635050867,-430.0,0.00024657,4]
[361606914,1747635050877,-500.0,0.00024657,4]
[361606916,1747635050886,-430.0,0.00024657,4]
[361606918,1747635050899,-430.0,0.00024657,4]
[361606921,1747635050909,-430.0,0.00024657,4]
[361606923,1747635050919,-430.0,0.00024657,4]
[361606925,1747635050929,-440.0,0.00024657,4]
[361606927,1747635050939,-430.0,0.00024657,4]
[361606929,1747635050949,-430.0,0.00024657,4]
[361606931,1747635050959,-430.0,0.00024657,4]
[361606933,1747635050968,-245.29501381,0.00024657,4]
[361606935,1747635050978,-542.76108936,0.00024657,4]
[361606937,1747635050988,-430.0,0.00024657,4]
[361606939,1747635050997,-430.0,0.00024657,4]
[361606941,1747635051007,-430.0,0.00024657,4]
[361606943,1747635051016,-503.72,0.00024657,4]
[361606945,1747635051026,-432.79653453,0.00024657,4]
[361606947,1747635051035,-430.0,0.00024657,4]
[361606949,1747635051045,-470.0,0.00024657,4]
[361606951,1747635051055,-351.2615661,0.00024657,4]
[361606953,1747635051064,-400.0,0.00024657,4]
[361606955,1747635051074,-430.0,0.00024657,4]
[361606957,1747635051083,-331.16703617,0.00024657,4]
[361606959,1747635051093,-430.0,0.00024657,4]
[361606961,1747635051102,-369.84832912,0.00024657,4]
[361606963,1747635051112,-430.0,0.00024657,4]
[361606965,1747635051121,-430.0,0.00024657,4]
[361606967,1747635051131,-324.32471912,0.00024657,4]
[361606969,1747635051140,-470.0,0.00024657,4]
[361606971,1747635051151,-430.0,0.00024657,4]
[361606973,1747635051160,-430.0,0.00024657,4]
[361606975,1747635051169,-430.0,0.00024657,4]
[361606977,1747635051179,-460.0,0.00024657,4]
[361606979,1747635051188,-430.0,0.00024657,4]
[361606981,1747635051198,-470.0,0.00024657,4]
[361606983,1747635051209,-430.0,0.00024657,4]
[361606985,1747635051218,-430.0,0.00024657,4]
[361606987,1747635051227,-430.0,0.00024657,4]
[361606989,1747635051237,-430.0,0.00024657,4]
[361606991,1747635051247,-150.53439562,0.00024657,4]
[361606993,1747635051257,-430.0,0.00024657,4]
[361606995,1747635051267,-470.0,0.00024657,4]
[361606997,1747635051276,-170.41669184,0.00024657,4]
[361606999,1747635051287,-400.0,0.00024657,4]
[361607001,1747635051296,-430.0,0.00024657,4]
[361607003,1747635051306,-430.0,0.00024657,4]
[361607005,1747635051315,-440.0,0.00024657,4]
[361607007,1747635051324,-354.04684108,0.00024657,4]
[361607009,1747635051334,-430.0,0.00024657,4]
[361607011,1747635051343,-430.0,0.00024657,4]
[361607013,1747635051352,-490.0,0.00024657,4]
[361607015,1747635051361,-371.87921462,0.00024657,4]
[361607017,1747635051370,-430.0,0.00024657,4]
[361607019,1747635051380,-380.66333255,0.00024657,4]
[361607022,1747635051389,-430.0,0.00024657,4]
[361607024,1747635051401,-470.0,0.00024657,4]
[361607026,1747635051410,-430.0,0.00024657,4]
[361607028,1747635051419,-420.0,0.00024657,4]
[361607030,1747635051429,-430.0,0.00024657,4]
[361607032,1747635051438,-430.0,0.00024657,4]
[361607034,1747635051447,-430.0,0.00024657,4]
[361607036,1747635051456,-420.0,0.00024657,4]
[361607038,1747635051465,-440.0,0.00024657,4]
[361607040,1747635051474,-400.78703088,0.00024657,4]
[361607042,1747635051483,-430.0,0.00024657,4]
[361607044,1747635051492,-470.0,0.00024657,4]
[361607046,1747635051501,-307.07395007,0.00024657,4]
[361607048,1747635051510,-430.0,0.00024657,4]
[361607050,1747635051520,-470.0,0.00024657,4]
[361607052,1747635051529,-400.0,0.00024657,4]
[361607054,1747635051538,-351.24082148,0.00024657,4]
[361607056,1747635051548,-430.0,0.00024657,4]
[361607058,1747635051557,-392.05902922,0.00024657,4]
[361607060,1747635051566,-430.0,0.00024657,4]
[361607062,1747635051575,-321.37540973,0.00024657,4]
[361607064,1747635051584,-369.55948414,0.00024657,4]
[361607066,1747635051593,-300.0,0.00024657,4]
[361607068,1747635051603,-430.0,0.00024657,4]
[361607070,1747635051612,-301.68828176,0.00024657,4]
[361607072,1747635051622,-470.0,0.00024657,4]
[361607074,1747635051632,-430.0,0.00024657,4]
[361607076,1747635051642,-430.0,0.00024657,4]
[361607078,1747635051653,-525.10601077,0.00024657,4]
[361607080,1747635051663,-327.25616134,0.00024657,4]
[361607082,1747635051673,-499.73651596,0.00024657,4]
[361607084,1747635051682,-430.0,0.00024657,4]
[361607086,1747635051691,-430.0,0.00024657,4]
[361607088,1747635051701,-470.0,0.00024657,4]
[361607090,1747635051710,-470.0,0.00024657,4]
[361607092,1747635051720,-350.89021086,0.00024657,4]
[361607094,1747635051729,-430.0,0.00024657,4]
[361607096,1747635051739,-430.0,0.00024657,4]
[361607098,1747635051748,-352.60178299,0.00024657,4]
[361607100,1747635051758,-440.0,0.00024657,4]
[361607102,1747635051767,-358.18215403,0.00024657,4]
[361607104,1747635051777,-361.40196904,0.00024657,4]
[361607106,1747635051787,-459.19375237,0.00024657,4]
[361607108,1747635051796,-430.0,0.00024657,4]
[361607110,1747635051806,-430.0,0.00024657,4]
[361607112,1747635051815,-244.43157572,0.00024657,4]
[361607114,1747635051824,-450.0,0.00024657,4]
[361607116,1747635051834,-430.0,0.00024657,4]
[361607118,1747635051844,-350.83782881,0.00024657,4]
[361607120,1747635051853,-460.0,0.00024657,4]
[361607134,1747635051978,-430.0,0.00024657,4]
[361607136,1747635051988,-420.0,0.00024657,4]
[361607138,1747635051999,-430.0,0.00024657,4]
[361607140,1747635052008,-430.0,0.00024657,4]
[361607142,1747635052018,-553.54,0.00024657,4]
[361607144,1747635052028,-430.0,0.00024657,4]
[361607146,1747635052037,-430.0,0.00024657,4]
[361607148,1747635052048,-470.0,0.00024657,4]
[361607150,1747635052059,-470.0,0.00024657,4]
[361607152,1747635052068,-430.0,0.00024657,4]
[361607154,1747635052078,-470.0,0.00024657,4]
[361607156,1747635052087,-430.0,0.00024657,4]
[361607158,1747635052096,-284.85557736,0.00024657,4]
[361607160,1747635052106,-430.0,0.00024657,4]
[361607162,1747635052115,-430.0,0.00024657,4]
[361607164,1747635052124,-467.17626793,0.00024657,4]
[361607166,1747635052133,-534.25137156,0.00024657,4]
[361607168,1747635052142,-430.0,0.00024657,4]
[361607170,1747635052152,-450.0,0.00024657,4]
[361607172,1747635052162,-430.0,0.00024657,4]
[361607174,1747635052171,-390.13652978,0.00024657,4]
[361607176,1747635052180,-400.0,0.00024657,4]
[361607178,1747635052189,-430.0,0.00024657,4]
[361607180,1747635052199,-430.0,0.00024657,4]
[361607182,1747635052211,-494.48175415,0.00024657,4]
[361607184,1747635052221,-156.85715023,0.00024657,4]
[361607186,1747635052230,-557.5578142,0.00024657,4]
[361607188,1747635052240,-430.0,0.00024657,4]
[361607191,1747635052251,-321.27564948,0.00024657,4]
[361607193,1747635052261,-430.0,0.00024657,4]
[361607195,1747635052270,-470.0,0.00024657,4]
[361607197,1747635052279,-430.0,0.00024657,4]
[361607199,1747635052290,-470.0,0.00024657,4]
[361607200,1747635052299,-430.0,0.00024657,4]
[361607203,1747635052308,-470.0,0.00024657,4]
[361607205,1747635052318,-430.0,0.00024657,4]
[361607207,1747635052328,-233.60061724,0.00024657,4]
[361607209,1747635052337,-400.0,0.00024657,4]
[361607211,1747635052347,-430.0,0.00024657,4]
[361607213,1747635052356,-320.73511274,0.00024657,4]
[361607215,1747635052365,-355.96073157,0.00024657,4]
[361607217,1747635052374,-400.0,0.00024657,4]
[361607219,1747635052383,-430.0,0.00024657,4]
[361607221,1747635052392,-430.0,0.00024657,4]
[361607223,1747635052404,-403.92286956,0.00024657,4]
[361607225,1747635052413,-575.65874398,0.00024657,4]
[361607227,1747635052423,-322.90103481,0.00024657,4]
[361607229,1747635052432,-430.0,0.00024657,4]
[361607231,1747635052441,-332.06993037,0.00024657,4]
[361607233,1747635052451,-430.0,0.00024657,4]
[361607235,1747635052460,-321.68758553,0.00024657,4]
[361607237,1747635052469,-352.35709453,0.00024657,4]
[361607239,1747635052478,-430.0,0.00024657,4]
[361607241,1747635052488,-470.0,0.00024657,4]
[361607243,1747635052497,-430.0,0.00024657,4]
[361607245,1747635052506,-430.0,0.00024657,4]
[361607247,1747635052515,-470.0,0.00024657,4]
[361607249,1747635052524,-476.48344915,0.00024657,4]
[361607251,1747635052533,-430.0,0.00024657,4]
[361607253,1747635052543,-470.0,0.00024657,4]
[361607255,1747635052553,-506.05003707,0.00024657,4]
[361607257,1747635052562,-430.0,0.00024657,4]
[361607259,1747635052571,-430.0,0.00024657,4]
[361607261,1747635052580,-542.13005107,0.00024657,4]
[361607263,1747635052589,-430.0,0.00024657,4]
[361607265,1747635052598,-323.19115681,0.00024657,4]
[361607268,1747635052608,-430.0,0.00024657,4]
[361607270,1747635052618,-356.18460008,0.00024657,4]
[361607272,1747635052626,-470.0,0.00024657,4]
[361607274,1747635052635,-430.0,0.00024657,4]
[361607276,1747635052646,-430.0,0.00024657,4]
[361607278,1747635052656,-472.61463669,0.00024657,4]
[361607280,1747635052666,-154.35920013,0.00024657,4]
[361607282,1747635052675,-354.0315699,0.00024657,4]
[361607284,1747635052683,-551.62014155,0.00024657,4]
[361607286,1747635052693,-404.9073149,0.00024657,4]
[361607288,1747635052702,-350.0,0.00024657,4]
[361607290,1747635052711,-183.81281567,0.00024657,4]
[361607292,1747635052720,-354.71511886,0.00024657,4]
[361607294,1747635052729,-450.0,0.00024657,4]
[361607296,1747635052739,-369.9839579,0.00024657,4]
[361607298,1747635052748,-256.98120779,0.00024657,4]
[361607300,1747635052757,-450.0,0.00024657,4]
[361607302,1747635052767,-430.0,0.00024657,4]
[361607304,1747635052776,-321.80673603,0.00024657,4]
[361607306,1747635052785,-358.99384366,0.00024657,4]
[361607308,1747635052794,-269.42651121,0.00024657,4]
[361607310,1747635052803,-430.0,0.00024657,4]
[361607312,1747635052813,-366.26667285,0.00024657,4]
[361607314,1747635052822,-323.24886749,0.00024657,4]
[361607316,1747635052832,-450.0,0.00024657,4]
[361607318,1747635052841,-432.64107791,0.00024657,4]
[361607320,1747635052850,-405.59926111,0.00024657,4]
[361607322,1747635052859,-430.0,0.00024657,4]
[361607325,1747635052869,-371.42855095,0.00024657,4]
[361607326,1747635052879,-305.64264935,0.00024657,4]
[361607329,1747635052888,-430.0,0.00024657,4]
[361607330,1747635052899,-344.43241578,0.00024657,4]
[361607332,1747635052908,-450.0,0.00024657,4]
[361607334,1747635052917,-430.0,0.00024657,4]
[361607337,1747635052927,-430.0,0.00024657,4]
[361607339,1747635052936,-470.0,0.00024657,4]
[361607341,1747635052945,-430.0,0.00024657,4]
[361607343,1747635052955,-430.0,0.00024657,4]
[361607345,1747635052964,-430.0,0.00024657,4]
[361607347,1747635052974,-501.05598851,0.00024657,4]
[361607349,1747635052984,-430.0,0.00024657,4]
[361607351,1747635052993,-1224.18,0.00024657,2]
[361607353,1747635053002,-430.0,0.00024657,4]
[361607355,1747635053011,-390.0,0.00024657,4]
[361607357,1747635053020,-430.0,0.00024657,4]
[361607359,1747635053029,-470.0,0.00024657,4]
[361607361,1747635053039,-354.65820784,0.00024657,4]
[361607363,1747635053048,-430.0,0.00024657,4]
[361607365,1747635053057,-529.21401769,0.00024657,4]
[361607367,1747635053067,-450.0,0.00024657,4]
[361607369,1747635053076,-430.0,0.00024657,4]
[361607371,1747635053085,-470.0,0.00024657,4]
[361607373,1747635053094,-430.0,0.00024657,4]
[361607374,1747635053103,-517.78544516,0.00024657,4]
[361607377,1747635053113,-430.0,0.00024657,4]
[361607379,1747635053123,-430.0,0.00024657,4]
[361607381,1747635053132,-440.0,0.00024657,4]
[361607383,1747635053142,-430.0,0.00024657,4]
[361607385,1747635053153,-540.14,0.00024657,4]
[361607387,1747635053163,-430.0,0.00024657,4]
[361607389,1747635053172,-242.18108008,0.00024657,4]
[361607391,1747635053182,-430.0,0.00024657,4]
[361607393,1747635053192,-377.62564354,0.00024657,4]
[361607395,1747635053202,-430.0,0.00024657,4]
[361607397,1747635053213,-159.0,0.00024658,3]
[361607399,1747635053222,-1000.0,0.00024658,2]
[361607401,1747635053231,-339.87238385,0.00024658,2]
[361607403,1747635053243,-600.0,0.00024673,2]
[361607405,1747635053252,-500.0,0.00024673,2]
[361607407,1747635053261,-500.0,0.00024673,2]
[361607409,1747635053271,-348.37657469,0.00024693,11]
[361607411,1747635053282,-1674.01,0.000247,7]
[361607413,1747635053291,-488.36617071,0.00024751,2]
[361607415,1747635053301,-168.54190298,0.00024765,2]
[361607417,1747635053310,-154.1627373,0.00024767,2]
[361607419,1747635053319,-318.1172864,0.00024767,2]
[361607421,1747635053328,-133401.54,0.00024772,6]
[361607423,1747635053337,-989.61,0.00024799,4]
[361607425,1747635053347,-157845.293802,0.000248,2]
[361607427,1747635053356,-37217.99377125,0.0002489,2]
[361607431,1747635053383,-253.9710398,0.0002489,2]
[361607433,1747635053394,-436.73,0.0002489,2]
[361607435,1747635053407,-10409.61886833,0.0002489,2]
[361607865,1747635807655,326.54925521,0.000256,120]
[361607933,1747636232196,-441.459373,0.00013426,2]
[361607935,1747636232207,-441.459373,0.00013699,2]
[361607936,1747636232216,-7456.20848457,0.00017899,2]
[361607937,1747636232225,-180.6690875,0.00018333,2]
[361607938,1747636232235,-160.0,0.00018872,2]
[361607939,1747636232244,-300.0,0.00018877,2]
[361607940,1747636232253,-300.0,0.00018877,2]
[361607941,1747636232262,-242.83,0.000191,2]
[361607942,1747636232272,-207.4,0.000193,2]
[361607943,1747636232281,-3754.73641942,0.00019311,2]
[361607944,1747636232293,-46245.26358058,0.00019311,2]
[361607945,1747636232302,-24900.0,0.00019314,2]
[361607946,1747636232312,-500.0,0.00019433,2]
[361607947,1747636232321,-504.97184513,0.00019475,2]
[361607948,1747636232331,-507.84855251,0.00019475,2]
[361607949,1747636232341,-509.16849957,0.00019475,2]
[361607950,1747636232350,-500.0,0.00019475,2]
[361607951,1747636232359,-500.0,0.00019475,2]
[361607952,1747636232368,-500.0,0.00019475,2]
[361607953,1747636232378,-517.04435967,0.00019475,2]
[361607954,1747636232387,-500.0,0.00019475,2]
[361607955,1747636232396,-500.0,0.00019475,2]
[361607956,1747636232406,-507.12603409,0.00019475,2]
[361607957,1747636232415,-500.0,0.000195,2]
[361607958,1747636232425,-404.0,0.00019595,2]
[361607959,1747636232433,-549.437,0.00019595,2]
[361607960,1747636232443,-500.0,0.000196,2]
[361607961,1747636232452,-500.0,0.000196,2]
[361607962,1747636232462,-500.0,0.000196,2]
[361607963,1747636232472,-557.48174199,0.000196,2]
[361607964,1747636232481,-500.0,0.000196,2]
[361607965,1747636232491,-500.0,0.000196,2]
[361607966,1747636232500,-165.0993109,0.00019869,2]
[361607967,1747636232509,-1000.0,0.00019981,2]
[361607968,1747636232518,-157.86,0.0002,2]
[361607969,1747636232528,-1000.0,0.00020023,2]
[361607970,1747636232537,-1004.65859348,0.00020023,2]
[361607971,1747636232546,-592.80565917,0.00020023,2]
[361607972,1747636232555,-500.70190827,0.00020023,2]
[361607973,1747636232565,-1000.0,0.00020023,2]
[361607974,1747636232574,-502.95954698,0.00020048,2]
[361607975,1747636232583,-1000.0,0.00020148,2]
[361607976,1747636232593,-1000.0,0.00020148,2]
[361607977,1747636232607,-441.459373,0.00020187,2]
[361607978,1747636232617,-420.0,0.00020579,2]
[361607979,1747636232627,-172.995,0.00020879,2]
[361607980,1747636232636,-500.0,0.00021683,2]
[361607981,1747636232647,-510.0526334,0.00022051,2]
[361607982,1747636232658,-637.0,0.000224,2]
[361607983,1747636232667,-303.0,0.00022466,3]
[361607984,1747636232680,-404.0,0.00022595,2]
[361607985,1747636232690,-500.0,0.00022779,2]
[361607986,1747636232699,-569.7291921,0.00023781,2]
[361607987,1747636232708,-419.2738277,0.00023781,2]
[361607988,1747636232717,-500.0,0.00023875,2]
[361607989,1747636232727,-462.3644152,0.00023941,2]
[361607990,1747636232737,-160.624379,0.00024078,2]
[361607991,1747636232746,-569.7291921,0.00024078,2]
[361607992,1747636232755,-7208.32266713,0.00024097,2]
[361607993,1747636232765,-5000.0,0.00024097,2]
[361607994,1747636232774,-5000.0,0.00024097,2]
[361607995,1747636232783,-5000.0,0.00024097,2]
[361607996,1747636232793,-5000.0,0.00024097,2]
[361607997,1747636232802,-184168.32,0.00024356,6]
[361607998,1747636232812,-4019.71,0.00024356,6]
[361607999,1747636232821,-500.0,0.00024387,9]
[361608000,1747636232830,-1586.8115124,0.00024396,2]
[361608001,1747636232840,-168.54190298,0.00024399,2]
[361608002,1747636232849,-636.67244117,0.00024499,2]
[361608003,1747636232859,-452.70225914,0.00024499,2]
[361608004,1747636232868,-500.0,0.00024499,2]
[361608005,1747636232877,-500.0,0.00024499,2]
[361608006,1747636232887,-500.0,0.00024499,2]
[361608007,1747636232897,-500.0,0.00024499,2]
[361608008,1747636232906,-355.03133421,0.00024499,2]
[361608009,1747636232915,-500.0,0.00024499,2]
[361608010,1747636232924,-500.0,0.00024499,2]
[361608011,1747636232934,-500.0,0.00024499,2]
[361608012,1747636232944,-500.0,0.00024499,2]
[361608013,1747636232954,-500.0,0.00024499,2]
[361608014,1747636232963,-300.0,0.00024499,2]
[361608015,1747636232973,-166.89158139,0.00024499,2]
[361608016,1747636232983,-95883.75801422,0.000245,7]
[361608094,1747636240337,-998.68447496,0.00018683,2]
[361608096,1747636240348,-205.1957165,0.00018778,2]
[361608098,1747636240358,-998.68447496,0.00018872,2]
[361608100,1747636240367,-422.59250115,0.00018878,2]
[361608102,1747636240378,-205.19571649,0.00018886,2]
[361608104,1747636240387,-205.19571649,0.00018994,2]
[361608106,1747636240397,-300.0,0.00019099,2]
[361608108,1747636240407,-205.19571649,0.00019102,2]
[361608111,1747636240418,-205.19571649,0.0001921,2]
[361608113,1747636240428,-500.0,0.0001931,2]
[361608115,1747636240441,-500.0,0.0001931,2]
[361608117,1747636240450,-500.0,0.0001931,2]
[361608119,1747636240460,-500.0,0.0001931,2]
[361608121,1747636240470,-238.73253029,0.0001931,2]
[361608123,1747636240479,-523.70622277,0.0001931,2]
[361608125,1747636240489,-500.0,0.0001931,2]
[361608127,1747636240499,-500.0,0.0001931,2]
[361608129,1747636240508,-500.0,0.0001931,2]
[361608131,1747636240517,-500.0,0.0001931,2]
[361608133,1747636240527,-500.0,0.0001931,2]
[361608135,1747636240536,-420.0,0.00020816,2]
[361608137,1747636240545,-622.95104947,0.000209,4]
[361608139,1747636240554,-67654.27017552,0.000245,7]
[361609023,1747637438637,-397.313435,0.00013426,2]
[361609025,1747637438647,-397.313435,0.00013699,2]
[361609026,1747637438656,-489.5,0.00018785,7]
[361609027,1747637438666,-218.55,0.000194,2]
[361609028,1747637438676,-227.0,0.00019726,3]
[361609029,1747637438686,-404.0,0.00020153,2]
[361609031,1747637438695,-424.7273666,0.00020187,13]
[361609032,1747637438705,-397.313435,0.00020187,2]
[361609034,1747637438714,-500.0194447,0.0002034,2]
[361609035,1747637438727,-300.0,0.00020672,2]
[361609036,1747637438736,-157.86,0.00020673,2]
[361609038,1747637438745,-160.0,0.00020673,2]
[361609040,1747637438755,-998.68447496,0.00020673,2]
[361609042,1747637438766,-422.59250115,0.00020673,2]
[361609044,1747637438775,-160.0,0.00020673,2]
[361609046,1747637438785,-500.0,0.00020684,2]
[361609048,1747637438795,-500.0,0.00020684,2]
[361609050,1747637438804,-500.0,0.00020684,2]
[361609052,1747637438815,-500.0,0.00020684,2]
[361609054,1747637438824,-500.0,0.00020684,2]
[361609056,1747637438834,-500.0,0.00020684,2]
[361609058,1747637438844,-500.0,0.00020684,2]
[361609061,1747637438853,-500.0,0.00020684,2]
[361609063,1747637438862,-248.74805892,0.00020684,2]
[361609064,1747637438872,-50000.0,0.00020685,2]
[361609066,1747637438881,-602.18601442,0.000209,4]
[361609068,1747637438891,-602.18601422,0.00021072,4]
[361609070,1747637438900,-602.18601422,0.00021245,4]
[361609072,1747637438910,-602.18601422,0.00021417,5]
[361609074,1747637438920,-602.18601422,0.0002159,5]
[361609076,1747637438930,-500.0,0.00021683,2]
[361609078,1747637438939,-602.18601422,0.00021762,5]
[361609080,1747637438949,-602.18601422,0.00021934,6]
[361609083,1747637438959,-4604.6977768,0.00021968,2]
[361609085,1747637438970,-469.0,0.00022,2]
[361609087,1747637438980,-602.18601422,0.00022107,6]
[361609089,1747637438989,-469.0,0.00022192,7]
[361609091,1747637438999,-172.995,0.00022278,2]
[361609093,1747637439008,-602.18601422,0.00022279,6]
[361609110,1747637439173,-602.18601422,0.00022452,7]
[361609111,1747637439183,-602.18601422,0.00022624,7]
[361609113,1747637439193,-602.18601422,0.00022797,7]
[361609116,1747637439204,-602.18601422,0.00022969,8]
[361609119,1747637439213,-469.0,0.00023014,7]
[361609122,1747637439225,-602.18601422,0.00023141,8]
[361609124,1747637439235,-404.0,0.00023153,2]
[361609125,1747637439244,-602.18601422,0.00023314,9]
[361609126,1747637439254,-602.18601422,0.00023486,9]
[361609127,1747637439264,-602.18601422,0.00023659,9]
[361609128,1747637439273,-156.9410436,0.00023808,2]
[361609129,1747637439283,-158.0438358,0.00023808,2]
[361609130,1747637439292,-1115.809186,0.00023808,2]
[361609131,1747637439301,-1139.1337586,0.00023808,2]
[361609132,1747637439310,-602.18601422,0.00023831,10]
[361609133,1747637439320,-500.0,0.00023875,2]
[361609134,1747637439329,-34542.755463,0.00023875,2]
[361609135,1747637439341,-602.18601422,0.00024003,10]
[361609136,1747637439351,-11408.03502625,0.00024145,3]
[361609138,1747637439360,-473.0,0.00024164,7]
[361609140,1747637439369,-602.18601422,0.00024176,10]
[361609142,1747637439379,-602.18601422,0.00024348,11]
[361609144,1747637439389,-1269.4492099,0.00024396,2]
[361609146,1747637439398,-6906.26049352,0.000244,2]
[361609148,1747637439407,-50000.0,0.000244,7]
[361609150,1747637439417,-14380.25,0.000244,7]
[361609152,1747637439426,-998.68447496,0.000244,7]
[361609154,1747637439435,-500.0,0.00024499,2]
[361609156,1747637439444,-445.67070882,0.00024499,2]
[361609157,1747637439454,-500.0,0.00024499,2]
[361609159,1747637439463,-500.0,0.00024499,2]
[361609161,1747637439475,-500.0,0.00024499,2]
[361609162,1747637439484,-500.0,0.00024499,2]
[361609163,1747637439493,-500.0,0.00024499,2]
[361609164,1747637439503,-308.52193394,0.00024499,2]
[361609165,1747637439512,-266.82410698,0.00024499,2]
[361609166,1747637439522,-168461.97181026,0.000245,7]
[361609167,1747637439532,-151.0,0.000245,10]
[361609168,1747637439542,-160.0,0.000245,7]
[361609169,1747637439551,-151.0,0.000245,2]
[361609170,1747637439560,-151.1819092,0.000245,60]
[361609171,1747637439569,-602.18601422,0.00024521,11]
[361609172,1747637439578,-151.0,0.000246,7]
[361609173,1747637439587,-151.0,0.000246,6]
[361609174,1747637439597,-3150.97948728,0.00024657,3]
[361609175,1747637439607,-3127.37988593,0.00024657,2]
[361609176,1747637439616,-430.0,0.00024657,4]
[361609177,1747637439626,-541.64382906,0.00024657,4]
[361609178,1747637439636,-430.0,0.00024657,4]
[361609179,1747637439645,-430.0,0.00024657,4]
[361609180,1747637439654,-542.34198133,0.00024657,4]
[361609181,1747637439664,-302.28031177,0.00024657,4]
[361609182,1747637439673,-302.15977914,0.00024657,4]
[361609183,1747637439683,-450.68463914,0.00024657,4]
[361609184,1747637439693,-430.0,0.00024657,4]
[361609185,1747637439702,-204.06088182,0.00024657,4]
[361609186,1747637439712,-301.9478941,0.00024657,4]
[361609187,1747637439724,-323.30051281,0.00024657,4]
[361609188,1747637439734,-430.0,0.00024657,4]
[361609189,1747637439743,-430.0,0.00024657,4]
[361609190,1747637439754,-430.0,0.00024657,4]
[361609191,1747637439763,-472.2457194,0.00024657,4]
[361609192,1747637439773,-500.0,0.00024657,2]
[361609193,1747637439782,-191.12422495,0.00024657,4]
[361609194,1747637439792,-430.0,0.00024657,4]
[361609195,1747637439801,-430.0,0.00024657,4]
[361609196,1747637439812,-430.0,0.00024657,4]
[361609197,1747637439822,-348.63801601,0.00024657,4]
[361609198,1747637439831,-475.2213068,0.00024657,4]
[361609199,1747637439841,-430.0,0.00024657,4]
[361609200,1747637439850,-397.63859163,0.00024657,4]
[361609201,1747637439859,-338.78319217,0.00024657,4]
[361609203,1747637439870,-430.0,0.00024657,4]
[361609204,1747637439881,-308.20499047,0.00024657,4]
[361609205,1747637439891,-350.0,0.00024657,4]
[361609206,1747637439901,-430.0,0.00024657,4]
[361609208,1747637439910,-321.69173054,0.00024657,4]
[361609210,1747637439919,-351.35273238,0.00024657,4]
[361609212,1747637439929,-351.97939828,0.00024657,4]
[361609213,1747637439938,-350.0,0.00024657,4]
[361609214,1747637439948,-322.99494923,0.00024657,4]
[361609215,1747637439957,-430.0,0.00024657,4]
[361609216,1747637439966,-430.0,0.00024657,4]
[361609217,1747637439976,-430.0,0.00024657,4]
[361609218,1747637439986,-352.01093269,0.00024657,4]
[361609219,1747637439995,-393.21700156,0.00024657,4]
[361609220,1747637440005,-430.0,0.00024657,4]
[361609221,1747637440014,-430.0,0.00024657,4]
[361609222,1747637440024,-292.86219526,0.00024657,4]
[361609223,1747637440033,-430.0,0.00024657,4]
[361609224,1747637440042,-320.0,0.00024657,4]